bitfinex-derivatives/quotes_ETHF0:USTF0_20250110
["timestamp","ask_amount","ask_price","bid_price","bid_amount"]
[1736543883038,0.3062,3266.1,3266.0,0.30619]
[1736543890537,0.9329,3266.2,3265.8,0.76554]
[1736543890843,0.4531,3266.3,3266.2,0.30618]
[1736543891139,0.54439652,3268.0,3266.0,6.59208056]
[1736543891441,0.4668,3268.0,3267.9,0.30602]
[1736543897049,0.30598,3268.3,3268.1,0.306]
[1736543897952,1.4163,3268.6,3267.8,3.2078]
[1736543898152,0.306,3268.2,3268.0,0.306]
[1736543898348,0.306,3268.2,3267.8,3.2078]
[1736543898555,0.306,3268.2,3268.1,0.306]
[1736543899255,0.30599,3268.3,3268.1,0.306]
[1736543899955,0.30599,3268.3,3268.2,0.30599]
[1736543902657,0.306,3268.2,3268.1,0.30599]
[1736543910256,0.30598,3268.4,3268.3,0.30597]
[1736543910462,4.3913,3268.6,3268.5,0.30596]
[1736543910463,1.72226,3268.6,3268.5,0.30596]
[1736543910664,1.4163,3268.6,3268.5,0.30596]
[1736543910865,1.4163,3268.6,3268.5,41.10596]
[1736543911365,1.72225,3268.6,3268.5,41.10596]
[1736543912155,1.72225,3268.6,3268.5,0.30596]
[1736543914654,1.72225,3268.6,3268.3,40.8]
[1736543914853,0.30598,3268.4,3268.3,0.30597]
[1736543917855,5.38901,3268.6,3268.1,40.8]
[1736543918056,0.30602,3267.9,3267.8,3.2078]
[1736543918658,0.30602,3267.9,3267.8,3.51383]
[1736543919263,0.76322,3267.9,3267.8,3.51383]
[1736543920460,0.76322,3267.9,3267.8,3.2078]
[1736543920659,0.76322,3267.9,3267.8,3.51383]
[1736543921461,0.76322,3267.9,3267.8,3.2078]
[1736543921860,1.22612,3267.9,3267.8,3.2078]
[1736543923066,0.30603,3267.8,3267.7,46.45411056]
[1736543924770,0.30603,3267.8,3267.7,43.24631056]
[1736543925469,0.30603,3267.8,3267.7,41.10603]
[1736543925873,2.44631056,3267.8,3267.7,40.8]
[1736543926062,2.14028056,3267.8,3267.2,3.2078]
[1736543926265,0.30607,3267.3,3267.2,3.2078]
[1736543926762,0.30607,3267.3,3267.2,44.0078]
[1736543927164,0.4365,3267.5,3266.4,0.7589]
[1736543927165,3.2078,3267.4,3266.6,3.2078]
[1736543927371,0.30613,3266.7,3266.6,3.2078]
[1736543927569,0.30613,3266.7,3266.6,44.0078]
[1736543927769,0.30613,3266.7,3266.6,40.8]
[1736543930374,0.4365,3266.9,3266.2,3.2078]
[1736543930574,0.4693,3267.2,3266.7,2.14028056]
[1736543930774,0.4693,3267.2,3266.3,0.76543]
[1736543930775,0.4731,3267.5,3267.0,5.34808056]
[1736543931073,0.4731,3267.5,3267.3,0.30607]
[1736543931373,0.30606,3267.4,3267.3,0.30607]
[1736543931973,0.77916,3267.5,3267.0,5.34808056]
[1736543932173,0.77916,3267.5,3267.4,0.30606]
[1736543932573,0.77916,3267.5,3267.3,0.30607]
[1736543932879,0.4731,3267.5,3267.3,0.30607]
[1736543933176,0.30606,3267.4,3267.3,0.30607]
[1736543933571,0.30608,3267.3,3267.2,0.30608]
[1736543933974,0.30609,3267.2,3267.1,0.30609]
[1736543934168,0.30609,3267.1,3267.0,5.65418056]
[1736543934374,0.30609,3267.1,3267.0,3.2078]
[1736543936677,0.30611,3266.9,3266.8,40.8]
[1736543937285,1.20471,3266.9,3266.8,40.8]
[1736543938185,0.30614,3266.6,3266.5,0.30615]
[1736543938576,0.30614,3266.6,3266.5,41.10615]
[1736543939072,0.30614,3266.6,3266.5,40.8]
[1736543939778,0.30614,3266.6,3266.5,41.10615]
[1736543939977,0.30614,3266.6,3266.5,40.8]
[1736543941881,0.30615,3266.5,3266.4,3.51395]
[1736543942181,0.30615,3266.5,3266.4,44.31395]
[1736543942785,0.30615,3266.5,3266.4,44.0078]
[1736543942975,0.30615,3266.5,3266.4,44.31396]
[1736543950183,0.30614,3266.6,3266.5,0.30614]
[1736543954686,0.30615,3266.5,3266.4,44.31395]
[1736543955689,0.30615,3266.5,3266.4,44.0078]
[1736543955884,0.30615,3266.5,3266.4,44.31396]
[1736543956398,0.30615,3266.5,3266.4,44.0078]
[1736543956800,0.30615,3266.5,3266.4,44.31396]
[1736543957096,0.30615,3266.5,3266.4,44.0078]
[1736543957301,0.30615,3266.5,3266.4,3.2078]
[1736543963913,3.2078,3266.8,3266.2,40.8]
[1736543964106,0.30617,3266.3,3266.2,40.8]
[1736543964305,0.30619,3266.1,3266.0,3.2078]
[1736543964710,0.30619,3266.1,3266.0,3.514]
[1736543965015,0.30619,3266.1,3266.0,3.2078]
[1736543966508,0.30619,3266.1,3266.0,3.514]
[1736543967303,0.30619,3266.1,3266.0,3.2078]
[1736543969615,0.30622,3265.9,3265.8,0.30621]
[1736543974925,1.66366,3266.2,3265.6,44.0078]
[1736543975116,0.30622,3265.7,3265.6,44.31402]
[1736543975416,0.30622,3265.8,3265.6,44.0078]
[1736543975621,0.30622,3265.8,3265.7,0.30621]
[1736543975918,0.30621,3265.9,3265.8,0.3062]
[1736543982019,0.30622,3265.7,3265.6,44.31403]
[1736543986726,0.30622,3265.7,3265.6,3.2078]
[1736543986921,0.30627,3265.3,3265.2,0.30626]
[1736543987322,0.30626,3265.3,3265.2,41.10627]
[1736543990926,0.924,3265.6,3265.2,42.94028056]
[1736543991127,0.30619,3266.1,3266.0,0.3062]
[1736543992126,0.3062,3266.0,3265.9,0.3062]
[1736543992530,0.76349,3266.1,3266.0,0.3062]
[1736543997128,0.30621,3266.0,3265.9,0.3062]
[1736543999635,0.30622,3265.9,3265.8,0.3062]
[1736544000133,0.4573,3266.1,3265.5,6.11369056]
[1736544000334,0.30621,3266.0,3265.9,0.3062]
[1736544001934,0.30622,3265.8,3265.7,0.30621]
[1736544002131,0.30621,3265.9,3265.8,0.3062]
[1736544002725,0.3062,3266.0,3265.9,0.3062]
[1736544004040,0.4573,3266.1,3265.8,2.14028056]
[1736544004333,3.2078,3266.6,3266.5,0.30615]
[1736544004739,3.51394,3266.6,3266.5,0.30615]
[1736544005037,0.30614,3266.6,3266.5,0.30615]
[1736544006342,0.30614,3266.7,3266.6,0.30613]
[1736544007544,0.30616,3266.6,3266.5,0.30614]
[1736544008142,1.4165,3266.8,3266.3,3.2078]
[1736544008348,0.30614,3266.7,3266.6,0.30613]
[1736544012250,1.4165,3266.8,3266.7,0.30613]
[1736544013148,0.30612,3266.9,3266.8,0.30612]
[1736544014045,0.3061,3267.1,3267.0,0.30609]
[1736544015039,1.39,3267.2,3266.7,3.2078]
[1736544015241,0.30612,3266.9,3266.8,0.30611]
[1736544015747,0.30612,3266.9,3266.7,3.2078]
[1736544015940,0.30612,3266.8,3266.7,3.2078]
[1736544016242,0.30612,3266.8,3266.7,3.51393]
[1736544017042,0.30612,3266.8,3266.7,3.2078]
[1736544017851,0.30612,3266.8,3266.7,3.51393]
[1736544018050,0.30612,3266.8,3266.7,3.2078]
[1736544018943,1.39,3267.2,3266.7,3.2078]
[1736544019143,1.39,3267.2,3266.7,5.34808056]
[1736544019344,1.69609,3267.2,3267.1,0.30609]
[1736544020247,1.39,3267.2,3266.8,0.7266]
[1736544020547,0.3061,3267.0,3266.9,0.3061]
[1736544021049,1.39,3267.2,3267.0,0.30609]
[1736544021050,0.3061,3267.1,3267.0,0.30609]
[1736544023842,1.39,3267.2,3266.7,5.34808056]
[1736544024047,0.30612,3266.9,3266.8,0.30612]
[1736544024450,0.30611,3267.0,3266.9,0.3061]
[1736544026241,0.30612,3266.9,3266.8,0.30611]
[1736544026446,0.30611,3267.0,3266.9,0.3061]
[1736544029849,1.39,3267.2,3266.7,3.2078]
[1736544030055,0.30612,3266.8,3266.7,3.51393]
[1736544031860,0.30612,3266.8,3266.7,3.2078]
[1736544036156,0.30614,3266.6,3266.5,0.30614]
[1736544036859,0.75924,3266.6,3266.5,0.30614]
[1736544039255,0.4531,3266.6,3266.3,2.14028056]
[1736544039465,0.30615,3266.5,3266.4,0.30615]
[1736544040255,0.75925,3266.6,3266.5,0.30615]
[1736544040955,0.75925,3266.6,3266.3,2.14028056]
[1736544040956,0.3061,3267.0,3266.9,0.3061]
[1736544041159,0.7468,3267.0,3266.9,0.3061]
[1736544042165,0.4407,3267.0,3266.9,2.44638056]
[1736544042351,0.76288,3267.3,3266.9,2.14028056]
[1736544042352,0.4568,3267.3,3266.9,2.14028056]
[1736544042554,0.4568,3267.3,3267.2,0.30608]
[1736544042867,0.4568,3267.3,3266.9,2.90555056]
[1736544042868,0.8775,3267.4,3267.3,0.30607]
[1736544043165,1.2691666,3268.6,3267.6,0.76512]
[1736544043357,0.7451,3268.1,3267.9,3.2078]
[1736544043555,0.7451,3268.1,3268.0,0.30601]
[1736544043764,0.4391,3268.1,3267.9,3.2078]
[1736544043960,0.4391,3268.1,3267.4,6.11398056]
[1736544044157,0.4391,3268.1,3267.4,5.34808056]
[1736544044359,0.30603,3267.8,3267.7,0.30603]
[1736544044567,0.30601,3268.0,3267.9,0.30601]
[1736544046465,0.30602,3267.9,3267.8,0.30602]
[1736544046660,0.4391,3268.1,3267.4,5.34808056]
[1736544046868,1.22243,3267.8,3267.7,0.30604]
[1736544048860,1.22243,3267.8,3267.7,3.51384]
[1736544049060,1.22243,3267.8,3267.7,3.2078]
[1736544049869,1.22243,3267.8,3267.7,3.51384]
[1736544050070,1.22243,3267.8,3267.7,3.2078]
[1736544050762,1.22243,3267.8,3267.7,3.51384]
[1736544051455,1.22243,3267.8,3267.7,3.2078]
[1736544054359,0.30604,3267.7,3267.6,0.30604]
[1736544055371,0.30606,3267.5,3267.4,0.30606]
[1736544055967,0.30606,3267.4,3267.3,3.2078]
[1736544056169,0.30606,3267.4,3267.3,3.51387]
[1736544056366,0.30606,3267.4,3267.3,44.31387]
[1736544056666,0.30606,3267.4,3267.3,3.51387]
[1736544057269,0.30606,3267.4,3267.3,3.2078]
[1736544057472,0.30606,3267.4,3267.3,3.51387]
[1736544058567,0.30606,3267.4,3267.3,0.30607]
[1736544061462,3.4143,3267.8,3267.7,0.30604]
[1736544061668,3.72033,3267.8,3267.7,0.30604]
[1736544062064,3.72033,3267.8,3267.7,41.10604]
[1736544063170,3.4143,3267.8,3267.7,41.10604]
[1736544063365,0.9296,3268.1,3267.7,43.24632056]
[1736544063570,3.2078,3268.4,3268.0,5.34808056]
[1736544063772,0.77996,3268.6,3268.5,0.30596]
[1736544064168,0.474,3268.6,3268.5,0.30596]
[1736544064871,0.30595,3268.7,3268.6,0.30595]
[1736544065867,0.30596,3268.6,3268.5,0.30596]
[1736544066268,0.30596,3268.5,3268.4,3.51376]
[1736544066467,3.2078,3268.9,3268.4,3.2078]
[1736544066669,0.30596,3268.5,3268.4,3.51377]
[1736544067272,0.30596,3268.5,3268.4,3.2078]
[1736544070069,0.30596,3268.5,3268.4,3.51377]
[1736544070471,3.51374,3268.9,3268.8,0.30593]
[1736544071179,3.51374,3268.9,3268.8,41.10593]
[1736544071873,3.51374,3268.9,3268.5,0.30595]
[1736544071874,0.30596,3268.6,3268.5,0.30595]
[1736544072071,0.30596,3268.5,3268.4,3.51377]
[1736544072267,0.30596,3268.5,3268.4,44.0078]
[1736544072476,0.30596,3268.5,3268.4,3.2078]
[1736544077918,0.30597,3268.4,3268.3,0.30597]
[1736544079891,0.306,3268.2,3268.1,0.306]
[1736544082587,0.306,3268.1,3268.0,44.3138]
[1736544082980,0.306,3268.1,3268.0,44.0078]
[1736544083588,0.7874,3268.1,3268.0,44.0078]
[1736544084800,0.30605,3267.5,3267.4,3.51386]
[1736544085094,0.30605,3267.5,3267.4,44.0078]
[1736544085800,0.30605,3267.5,3267.4,44.31386]
[1736544086590,0.4402,3267.7,3267.6,0.30605]
[1736544086787,0.30603,3267.8,3267.7,0.30604]
[1736544088800,0.30604,3267.7,3267.6,0.30604]
[1736544089899,0.456,3268.0,3267.4,44.0078]
[1736544090101,0.30605,3267.5,3267.4,44.31386]
[1736544094005,0.30605,3267.5,3267.4,44.0078]
[1736544094404,0.30605,3267.5,3267.4,44.31386]
[1736544095007,0.30605,3267.5,3267.4,44.0078]
[1736544096007,0.30605,3267.5,3267.4,44.31386]
[1736544097606,0.30605,3267.5,3267.4,44.0078]
[1736544098007,0.30605,3267.5,3267.4,44.31386]
[1736544103401,0.76505,3267.9,3267.4,44.0078]
[1736544103708,0.456,3268.0,3267.4,44.0078]
[1736544104006,0.456,3268.0,3267.7,0.30603]
[1736544104007,0.30604,3267.8,3267.7,0.30603]
[1736544109509,0.30604,3267.8,3267.4,44.77296]
[1736544109810,0.30605,3267.6,3267.5,0.30604]
[1736544110315,0.30605,3267.5,3267.4,44.31385]
[1736544110504,1.69075,3267.5,3267.4,44.31385]
[1736544115909,1.69075,3267.5,3267.4,44.0078]
[1736544116311,1.69075,3267.5,3267.4,44.31386]
[1736544116717,1.69075,3267.5,3267.4,44.0078]
[1736544117311,1.69075,3267.5,3267.4,44.31386]
[1736544119614,1.69075,3267.5,3267.4,3.51386]
[1736544122817,0.30603,3267.9,3267.8,0.30602]
[1736544123011,1.339,3268.1,3267.5,0.4379]
[1736544123218,0.30604,3267.8,3267.7,0.30603]
[1736544129024,0.30605,3267.6,3267.5,0.30604]
[1736544130727,0.30604,3267.8,3267.7,0.30602]
[1736544133242,0.30604,3267.8,3267.4,3.2078]
[1736544133527,0.30604,3267.8,3267.5,1.31801858]
[1736544133528,0.30605,3267.6,3267.5,1.31801858]
[1736544144542,3.2078,3268.6,3267.5,7.25097858]
[1736544144735,16.40528301,3269.1,3268.5,1.01197858]
[1736544144936,0.9063,3268.9,3268.8,3.51373]
[1736544145248,13.19748301,3269.1,3268.8,44.0078]
[1736544145434,13.19748301,3269.1,3269.0,0.30591]
[1736544145838,1.23315,3269.7,3269.6,0.30586]
[1736544145839,0.9273,3269.7,3269.6,0.30586]
[1736544146247,0.9273,3269.7,3269.5,1.01197858]
[1736544146439,0.9273,3269.7,3269.6,0.30586]
[1736544146640,1.23315,3269.7,3269.6,0.30586]
[1736544146947,0.30581,3270.2,3270.1,0.30581]
[1736544147337,0.3058,3270.3,3270.2,0.3058]
[1736544147537,1.3585,3270.4,3270.3,0.30579]
[1736544148046,1.3585,3270.4,3270.2,3.5136]
[1736544148254,1.3585,3270.4,3270.2,3.2078]
[1736544148455,1.3585,3270.4,3270.3,0.30579]
[1736544148755,1.66428,3270.4,3270.2,3.5136]
[1736544148949,1.3585,3270.4,3270.2,3.2078]
[1736544149153,1.3585,3270.4,3270.2,3.51359]
[1736544149551,1.3585,3270.4,3270.2,3.2078]
[1736544149758,1.66428,3270.4,3270.2,3.5136]
[1736544149946,0.30579,3270.3,3270.2,3.5136]
[1736544150153,1.66429,3270.4,3270.2,3.5136]
[1736544152960,1.3585,3270.4,3270.3,0.30579]
[1736544154453,3.61405749,3271.2,3270.3,0.30579]
[1736544154454,3.2078,3271.5,3270.3,2.89914382]
[1736544154656,0.4569,3271.1,3271.0,0.30573]
[1736544154957,0.4569,3271.1,3271.0,41.10573]
[1736544155364,0.4599,3271.4,3271.0,40.8]
[1736544155558,0.4599,3271.4,3271.3,0.3057]
[1736544155748,0.4599,3271.4,3271.2,3.2078]
[1736544155950,0.7544,3271.3,3271.2,3.2078]
[1736544156150,0.9286,3271.3,3271.2,3.2078]
[1736544156352,0.9286,3271.3,3271.0,40.8]
[1736544156758,0.9286,3271.3,3271.1,0.30572]
[1736544157060,1.2343,3271.3,3271.1,0.30572]
[1736544157653,3.2078,3271.9,3271.1,2.13465382]
[1736544157963,0.4487,3271.8,3271.7,0.30566]
[1736544158358,0.4487,3271.8,3271.7,2.44031382]
[1736544158557,0.4487,3271.8,3271.7,0.30566]
[1736544158760,0.75435,3271.8,3271.7,40.8]
[1736544159155,0.75435,3271.8,3271.6,3.2078]
[1736544159850,0.4487,3271.8,3271.6,44.0078]
[1736544160052,0.30566,3271.7,3271.6,44.0078]
[1736544160262,0.30566,3271.7,3271.6,44.31347]
[1736544160457,2.13465382,3272.7,3271.6,44.0078]
[1736544160658,0.4763,3272.3,3271.7,2.44031382]
[1736544160869,0.30565,3271.8,3271.7,2.44031382]
[1736544161161,0.30565,3271.9,3271.7,2.44031382]
[1736544161557,0.4763,3272.3,3271.7,2.13465382]
[1736544161763,0.30563,3272.1,3271.9,0.30564]
[1736544162266,0.30563,3272.1,3271.7,2.13465382]
[1736544162566,0.30562,3272.2,3271.7,2.13465382]
[1736544162759,0.30562,3272.2,3272.0,0.30563]
[1736544162954,3.2078,3272.5,3272.0,0.30563]
[1736544162955,3.2078,3272.5,3272.0,2.13465382]
[1736544163164,0.469,3272.7,3272.0,5.34245382]
[1736544163661,0.3056,3272.4,3272.3,0.3056]
[1736544164663,0.30559,3272.5,3272.4,0.3056]
[1736544164862,0.469,3272.7,3272.0,5.34245382]
[1736544165163,0.30559,3272.5,3272.4,0.3056]
[1736544165664,0.30561,3272.3,3272.2,0.30561]
[1736544165861,0.469,3272.7,3272.0,5.34245382]
[1736544166066,0.30562,3272.1,3272.0,3.2078]
[1736544166365,0.30562,3272.1,3272.0,3.51343]
[1736544166674,3.97181,3272.4,3271.5,3.2078]
[1736544166966,0.30567,3271.6,3271.5,3.51348]
[1736544167666,0.30567,3271.6,3271.5,3.2078]
[1736544167967,0.30567,3271.6,3271.5,3.51348]
[1736544168165,0.30567,3271.6,3271.5,3.2078]
[1736544168359,0.30567,3271.6,3271.5,3.51348]
[1736544168560,0.30567,3271.6,3271.5,3.2078]
[1736544169166,0.30567,3271.6,3271.5,3.51348]
[1736544170069,0.30567,3271.6,3271.5,3.2078]
[1736544170672,0.30567,3271.6,3271.5,3.51348]
[1736544171166,0.30567,3271.6,3271.5,3.2078]
[1736544171368,0.30734576,3271.6,3271.5,3.2078]
[1736544171870,0.30734576,3271.6,3271.5,5.64813382]
[1736544173372,0.30734576,3271.6,3271.5,5.34245382]
[1736544173561,0.30734576,3271.6,3271.5,3.2078]
[1736544175268,0.30734576,3271.6,3270.5,1.49414]
[1736544175269,0.76425,3271.4,3270.5,2.57955382]
[1736544175468,0.30576,3270.7,3270.6,0.30576]
[1736544175671,0.30575,3270.8,3270.7,0.30575]
[1736544175970,0.30575,3270.8,3270.7,41.10575]
[1736544176359,0.30575,3270.8,3270.7,40.8]
[1736544179667,0.30575,3270.8,3270.7,41.10576]
[1736544180266,0.30575,3270.8,3270.7,40.8]
[1736544181166,0.30575,3270.8,3270.7,41.10576]
[1736544181671,0.30575,3270.8,3270.7,40.8]
[1736544185679,0.30575,3270.8,3270.7,41.10576]
[1736544186775,0.30575,3270.8,3270.7,40.8]
[1736544187375,0.30575,3270.8,3270.7,41.10576]
[1736544188475,0.30575,3270.8,3270.7,40.8]
[1736544188774,0.30575,3270.8,3270.7,41.10576]
[1736544190574,0.30575,3270.8,3270.7,40.8]
[1736544190775,0.30575,3270.8,3270.7,41.10576]
[1736544192374,0.30575,3270.8,3270.7,40.8]
[1736544192571,0.4607,3271.0,3270.7,40.8]
[1736544192774,0.76643,3271.0,3270.9,0.30574]
[1736544193278,0.30575,3270.9,3270.8,0.30574]
[1736544194080,0.4607,3271.0,3270.7,40.8]
[1736544194281,0.30575,3270.8,3270.7,40.8]
[1736544194481,0.30576,3270.6,3270.5,3.51357]
[1736544194680,0.30576,3270.6,3270.5,3.2078]
[1736544194873,0.30576,3270.6,3270.5,44.0078]
[1736544195574,0.30576,3270.6,3270.5,44.31357]
[1736544199283,0.4607,3271.0,3270.5,44.0078]
[1736544199483,0.30576,3270.7,3270.6,0.30575]
[1736544202481,1.22503,3271.0,3270.5,44.0078]
[1736544202682,0.30576,3270.6,3270.5,44.31357]
[1736544207386,0.30576,3270.6,3270.5,45.32378274]
[1736544209589,0.30576,3270.6,3270.5,45.01801274]
[1736544209889,0.30576,3270.6,3270.5,45.32378274]
[1736544210187,0.30576,3270.6,3270.5,42.11598274]
[1736544210984,0.30576,3270.6,3270.5,41.81021274]
[1736544212793,0.30576,3270.6,3270.5,42.11598274]
[1736544214797,0.30576,3270.6,3270.5,41.81021274]
[1736544215593,0.30576,3270.6,3270.5,42.11598274]
[1736544216099,0.30576,3270.6,3270.5,40.8]
[1736544216297,0.30578,3270.4,3270.3,1.60080274]
[1736544216697,0.30578,3270.4,3270.3,42.40080274]
[1736544219901,0.30578,3270.4,3270.3,42.09501274]
[1736544220100,0.30578,3270.4,3270.3,42.40080274]
[1736544221207,0.30578,3270.4,3270.3,42.09501274]
[1736544221411,0.30578,3270.4,3270.3,42.40080274]
[1736544224112,0.30578,3270.4,3270.3,42.09501274]
[1736544224310,0.30578,3270.4,3270.3,42.40080274]
[1736544225207,0.30578,3270.4,3270.3,42.09501274]
[1736544225407,1.31599274,3270.4,3270.3,40.8]
[1736544225609,0.76449,3270.3,3269.9,0.4531]
[1736544225808,0.30584,3269.8,3269.7,1.31606274]
[1736544226106,0.30584,3269.8,3269.7,42.11606274]
[1736544226807,0.30584,3269.8,3269.7,41.81021274]
[1736544229917,0.30584,3269.8,3269.7,40.8]
[1736544230918,0.30584,3269.8,3269.7,41.81021274]
[1736544231910,0.30582,3270.0,3269.9,0.30582]
[1736544232114,0.30582,3270.0,3269.9,1.31603274]
[1736544232316,3.51361,3270.1,3270.0,0.30582]
[1736544235114,0.4764,3270.4,3269.9,1.01021274]
[1736544235420,0.78839,3270.3,3270.2,1.31601274]
[1736544237023,0.78839,3270.3,3270.0,1.31602274]
[1736544237024,0.30582,3270.1,3270.0,1.31602274]
[1736544237416,0.30582,3270.1,3270.0,0.30581]
[1736544239218,0.4826,3270.3,3269.8,4.1093]
[1736544239418,0.30583,3270.0,3269.9,0.30582]
[1736544240522,0.30581,3270.2,3270.1,0.30581]
[1736544240722,0.78881,3270.2,3270.1,0.30581]
[1736544241219,0.30582,3270.1,3270.0,0.30581]
[1736544244918,0.483,3270.2,3270.1,0.30581]
[1736544245322,0.7888,3270.2,3270.1,0.30581]
[1736544246224,0.483,3270.2,3270.1,0.30455318]
[1736544246722,0.7888,3270.2,3270.1,0.30455318]
[1736544246923,0.483,3270.2,3270.1,0.30455318]
[1736544247522,0.7888,3270.2,3270.1,0.30455318]
[1736544248720,0.483,3270.2,3270.1,0.30455318]
[1736544249319,3.2078,3270.5,3270.1,0.76453]
[1736544249518,3.2078,3270.5,3270.4,2.44040887]
[1736544249921,0.76136,3270.7,3270.6,0.30576]
[1736544250319,0.4556,3270.7,3270.6,0.30576]
[1736544250523,0.76136,3270.7,3270.6,0.30576]
[1736544251223,0.4556,3270.7,3270.6,0.30576]
[1736544252721,0.4556,3270.7,3270.6,0.30676]
[1736544253119,0.76136,3270.7,3270.6,0.30676]
[1736544255231,0.76136,3270.7,3270.6,0.001]
[1736544255930,0.76136,3270.7,3270.6,0.30676]
[1736544256324,0.30573,3271.1,3271.0,0.30572]
[1736544256930,0.30573,3271.1,3271.0,41.10572]
[1736544257537,0.75033,3271.1,3271.0,40.8]
[1736544257725,0.75033,3271.1,3271.0,41.10573]
[1736544258930,0.30574,3271.0,3270.9,0.30573]
[1736544259133,0.30575,3270.8,3270.7,0.30574]
[1736544259428,0.30575,3270.8,3270.7,41.10574]
[1736544259831,0.76125,3270.8,3270.7,41.10574]
[1736544260027,0.76125,3270.8,3270.7,40.8]
[1736544260425,0.76125,3270.8,3270.7,41.10576]
[1736544261727,0.76125,3270.8,3270.7,40.8]
[1736544261938,0.30576,3270.7,3270.6,0.001]
[1736544262239,3.6633,3270.8,3269.9,3.2078]
[1736544262423,0.30581,3270.2,3270.1,0.3058]
[1736544264236,0.76443,3270.6,3270.0,40.8]
[1736544264433,0.3058,3270.3,3270.2,0.30579]
[1736544266733,0.771,3270.3,3270.2,0.30579]
[1736544267233,0.30581,3270.2,3270.1,0.3058]
[1736544267429,0.30581,3270.1,3270.0,41.10582]
[1736544270637,0.30581,3270.2,3270.1,0.3058]
[1736544271734,0.30581,3270.1,3270.0,41.10581]
[1736544272639,0.30581,3270.1,3270.0,40.8]
[1736544276337,0.30581,3270.1,3270.0,41.10582]
[1736544281448,0.30581,3270.1,3270.0,40.8]
[1736544281746,0.30581,3270.1,3270.0,41.10582]
[1736544283745,0.30581,3270.1,3270.0,40.8]
[1736544284048,0.30581,3270.1,3270.0,41.10582]
[1736544287944,0.30581,3270.1,3270.0,40.8]
[1736544288649,0.30581,3270.1,3270.0,41.10582]
[1736544289943,3.2078,3270.4,3270.0,40.8]
[1736544290144,3.51359,3270.4,3270.3,0.30579]
[1736544292948,0.30579,3270.4,3270.3,0.30579]
[1736544295847,0.76489,3270.4,3270.3,0.30579]
[1736544296253,0.4591,3270.4,3270.2,1.01058388]
[1736544296455,0.30579,3270.3,3270.2,1.31637388]
[1736544298855,0.30579,3270.3,3270.2,0.30579]
[1736544300457,0.3058,3270.2,3270.1,0.9052]
[1736544300650,0.30581,3270.1,3270.0,41.10582]
[1736544300850,0.30581,3270.1,3270.0,0.30582]
[1736544301259,0.30581,3270.1,3270.0,41.10582]
[1736544301451,0.30581,3270.1,3270.0,42.11640388]
[1736544305459,0.30581,3270.1,3270.0,41.10582]
[1736544308256,0.30581,3270.1,3270.0,40.8]
[1736544308454,0.30581,3270.1,3270.0,41.10582]
[1736544310965,0.30581,3270.1,3270.0,40.8]
[1736544311263,0.30581,3270.1,3270.0,41.10582]
[1736544311562,0.30581,3270.1,3270.0,42.11640388]
[1736544312364,0.4436,3270.9,3270.0,46.02896776]
[1736544312562,1.96618388,3271.3,3270.7,1.01058388]
[1736544312763,0.75493,3271.0,3270.9,0.30573]
[1736544312963,0.4492,3271.0,3270.8,0.923]
[1736544313162,0.30574,3270.9,3270.8,1.22874]
[1736544314760,0.30574,3270.9,3270.8,0.923]
[1736544315961,0.4492,3271.0,3270.5,3.2078]
[1736544316158,0.30576,3270.6,3270.5,3.51356]
[1736544319067,0.78336,3270.7,3270.6,0.30576]
[1736544321563,0.30577,3270.6,3270.5,0.30577]
[1736544323365,0.4776,3270.7,3270.1,3.2078]
[1736544323668,0.78478,3270.5,3270.4,0.30578]
[1736544323870,0.479,3270.5,3270.1,3.2078]
[1736544324065,0.30579,3270.4,3270.3,0.30578]
[1736544324365,2.61283096,3270.5,3270.1,3.2078]
[1736544324567,0.3058,3270.2,3270.1,3.2078]
[1736544324967,0.7866,3270.2,3270.1,3.2078]
[1736544325962,0.30581,3270.1,3270.0,41.10582]
[1736544326764,0.78661,3270.2,3270.1,0.30581]
[1736544328062,0.4808,3270.2,3270.1,0.30581]
[1736544328273,0.30579,3270.4,3270.3,0.30578]
[1736544328464,3.6868,3270.5,3270.2,0.465]
[1736544328670,0.4608,3270.7,3270.2,5.80663096]
[1736544328859,0.4608,3270.7,3270.6,0.30576]
[1736544329063,0.76656,3270.7,3270.6,0.30576]
[1736544330370,0.4608,3270.7,3270.6,0.30576]
[1736544332976,0.76656,3270.7,3270.6,0.30576]
[1736544334479,0.30577,3270.6,3270.5,0.30577]
[1736544334876,0.4608,3270.7,3270.2,3.6728]
[1736544335074,0.30579,3270.4,3270.3,0.30578]
[1736544335571,0.30579,3270.3,3270.2,0.3058]
[1736544336376,0.30581,3270.2,3270.1,0.30581]
[1736544336575,0.9191,3270.2,3270.1,0.30581]
[1736544337077,1.3669,3270.2,3270.1,0.30581]
[1736544337278,1.6727,3270.2,3270.1,0.30581]
[1736544337873,1.3669,3270.2,3270.0,40.8]
[1736544338282,1.6727,3270.2,3270.1,0.30581]
[1736544339182,0.30581,3270.1,3270.0,41.10581]
[1736544339888,0.30581,3270.1,3270.0,0.30581]
[1736544341780,1.67271,3270.2,3270.1,0.30581]
[1736544348590,1.67271,3270.2,3270.0,0.30581]
[1736544348591,0.30582,3270.1,3270.0,0.30581]
[1736544351697,0.75361,3270.2,3270.1,0.30581]
[1736544369210,0.4478,3270.2,3269.9,0.4547]
[1736544369405,0.30582,3270.1,3270.0,0.30582]
[1736544370412,0.30582,3270.0,3269.9,0.76053]
[1736544370702,0.75522,3270.0,3269.9,0.76053]